bitfinex-derivatives/quotes_BTCF0:USTF0_20241122
["timestamp","ask_amount","ask_price","bid_price","bid_amount"]
[1732271894956,0.12236,98408.0,98396.0,0.3608]
[1732271895151,0.050774,98401.0,98399.0,0.050775]
[1732271895563,0.050774,98400.0,98399.0,0.050775]
[1732271896974,0.050776,98397.0,98396.0,0.3608]
[1732271897263,0.050776,98397.0,98396.0,0.411576]
[1732271897662,0.12236,98408.0,98396.0,0.411576]
[1732271897860,0.050775,98402.0,98401.0,0.050774]
[1732271898665,0.050776,98397.0,98396.0,0.3608]
[1732271900265,0.08813952,98397.0,98396.0,0.3608]
[1732271900461,0.050779,98392.0,98391.0,0.0009]
[1732271900666,0.03736352,98397.0,98391.0,0.0009]
[1732271900860,0.47728,98403.0,98391.0,0.0009]
[1732271901056,0.050775,98400.0,98399.0,0.050774]
[1732271901573,0.411573,98403.0,98402.0,0.050773]
[1732271901755,0.3608,98403.0,98402.0,0.050773]
[1732271903761,0.44910474,98403.0,98402.0,0.050773]
[1732271906369,0.46940817,98403.0,98402.0,0.050773]
[1732271906672,0.41863517,98403.0,98402.0,0.050773]
[1732271913167,0.03753174,98403.0,98402.0,0.050773]
[1732271913368,0.02029628,98411.0,98396.0,0.0314]
[1732271913570,0.02029628,98411.0,98410.0,0.050769]
[1732271915066,0.02029628,98411.0,98410.0,0.083669]
[1732271921876,0.03765182,98422.0,98421.0,0.050764]
[1732271922074,0.11064,98422.0,98421.0,0.050764]
[1732271922672,0.0024,98435.0,98423.0,0.050763]
[1732271922982,0.00152434,98436.0,98435.0,0.050756]
[1732271923372,0.04034028,98436.0,98435.0,0.050756]
[1732271928574,0.09109628,98436.0,98435.0,0.050756]
[1732271930679,0.050757,98433.0,98432.0,0.3608]
[1732271930879,0.050757,98433.0,98432.0,0.411558]
[1732271932973,0.04034028,98436.0,98435.0,0.050756]
[1732271933186,0.09109628,98436.0,98435.0,0.050756]
[1732271935187,0.050757,98433.0,98427.0,0.05076]
[1732271935488,0.05076,98428.0,98427.0,0.05076]
[1732271940387,0.46592001,98434.0,98422.0,0.0333]
[1732271940579,0.05076,98429.0,98428.0,0.05076]
[1732271944690,0.10452,98432.0,98431.0,0.050758]
[1732271945599,0.155278,98432.0,98431.0,0.050758]
[1732271948092,0.050761,98427.0,98426.0,0.050761]
[1732271948295,0.155278,98432.0,98431.0,0.050758]
[1732271949893,0.050761,98427.0,98426.0,0.05076]
[1732271950290,0.050759,98431.0,98422.0,0.0333]
[1732271950798,0.050759,98431.0,98430.0,0.050759]
[1732271951190,0.149599,98431.0,98430.0,0.050759]
[1732271959685,0.09884,98431.0,98430.0,0.050759]
[1732271959891,0.149598,98431.0,98430.0,0.050759]
[1732271962005,0.050758,98431.0,98430.0,0.050759]
[1732271962306,0.149598,98431.0,98430.0,0.050759]
[1732271964193,0.09884,98431.0,98430.0,0.050759]
[1732271965196,0.09109628,98436.0,98435.0,0.050756]
[1732271965395,0.00152434,98436.0,98435.0,0.411556]
[1732271965623,0.0024,98449.0,98441.0,0.050753]
[1732271965808,0.050748,98451.0,98450.0,0.050749]
[1732271966903,0.3608,98457.0,98452.0,0.050748]
[1732271967098,0.050745,98458.0,98452.0,0.050748]
[1732271967303,0.09884,98456.0,98452.0,0.050748]
[1732271967506,0.3608,98458.0,98452.0,0.050748]
[1732271967700,0.050746,98456.0,98452.0,0.050748]
[1732271968502,0.050748,98452.0,98443.0,0.3608]
[1732271968694,0.050752,98446.0,98445.0,0.050751]
[1732271969109,0.09884,98446.0,98443.0,0.3608]
[1732271969411,0.050752,98444.0,98443.0,0.411552]
[1732271969904,0.411552,98444.0,98443.0,0.050752]
[1732271970711,0.050752,98444.0,98443.0,0.050752]
[1732271970896,0.050754,98440.0,98439.0,0.0314]
[1732271971096,0.03799089,98444.0,98427.0,0.39252]
[1732271971307,0.050759,98429.0,98428.0,0.082659]
[1732271974412,0.09884,98430.0,98428.0,0.082659]
[1732271974614,0.09884,98430.0,98429.0,0.050759]
[1732271974811,0.149599,98430.0,98429.0,0.050759]
[1732271978006,0.18876868,98430.0,98429.0,0.050759]
[1732271978716,0.050759,98429.0,98428.0,0.0319]
[1732271978908,0.13800968,98430.0,98420.0,0.050764]
[1732271979104,0.050763,98423.0,98421.0,0.050763]
[1732271980720,0.050763,98423.0,98422.0,0.050763]
[1732271982112,0.3608,98426.0,98425.0,0.050762]
[1732271985416,0.03916968,98430.0,98429.0,0.050759]
[1732271985623,0.0024,98441.0,98440.0,0.050754]
[1732271985811,0.00622424,98443.0,98429.0,0.411559]
[1732271985812,0.0396779,98443.0,98442.0,0.050753]
[1732271986013,0.00152424,98443.0,98442.0,0.050753]
[1732271996329,0.03802751,98446.0,98445.0,0.050751]
[1732271996630,0.09432,98448.0,98447.0,0.05075]
[1732271997723,0.13241395,98448.0,98447.0,0.05075]
[1732272002935,0.02029581,98449.0,98438.0,0.12866485]
[1732272003135,0.02029581,98449.0,98448.0,0.05075]
[1732272003431,0.03728916,98454.0,98453.0,0.050747]
[1732272003637,0.02029834,98460.0,98448.0,0.36172]
[1732272003935,0.02029834,98460.0,98459.0,0.050744]
[1732272004929,0.16536134,98460.0,98459.0,0.050744]
[1732272007237,0.11461834,98460.0,98459.0,0.050744]
[1732272007826,0.07896993,98461.0,98460.0,0.050743]
[1732272008027,0.0399,98461.0,98460.0,0.050743]
[1732272011341,0.07742809,98464.0,98463.0,0.050742]
[1732272011542,0.0399,98464.0,98463.0,0.050742]
[1732272015756,0.050746,98455.0,98454.0,0.00092]
[1732272015945,0.050752,98445.0,98444.0,0.050752]
[1732272016244,0.050746,98455.0,98439.0,0.36702368]
[1732272016245,0.050754,98441.0,98439.0,0.36324368]
[1732272016453,0.050754,98441.0,98439.0,0.36232368]
[1732272017365,0.081254,98441.0,98439.0,0.36232368]
[1732272017553,0.0305,98440.0,98439.0,0.00152368]
[1732272023671,0.33526,98440.0,98424.0,0.0047]
[1732272023863,0.11878018,98434.0,98422.0,0.3608]
[1732272024164,0.050762,98424.0,98422.0,0.3608]
[1732272024371,0.09424,98423.0,98422.0,0.3608]
[1732272027263,0.13306804,98423.0,98422.0,0.3608]
[1732272029372,0.18383104,98423.0,98422.0,0.3608]
[1732272030271,0.13306804,98423.0,98413.0,0.050768]
[1732272030575,0.050766,98417.0,98410.0,0.36172]
[1732272030771,0.050766,98417.0,98410.0,0.3608]
[1732272030976,0.13306804,98423.0,98410.0,0.3608]
[1732272031169,0.050763,98422.0,98411.0,0.050769]
[1732272031481,0.050763,98422.0,98420.0,0.050764]
[1732272031779,0.13306804,98423.0,98415.0,0.050767]
[1732272032075,0.0326,98422.0,98415.0,0.050767]
[1732272032375,0.050766,98416.0,98415.0,0.050767]
[1732272032569,0.12684,98422.0,98410.0,0.3608]
[1732272032772,0.050766,98417.0,98416.0,0.050766]
[1732272033277,0.09424,98417.0,98409.0,0.0307]
[1732272033874,0.09424,98417.0,98416.0,0.050766]
[1732272038474,0.050766,98417.0,98416.0,0.050766]
[1732272038779,0.144846,98417.0,98416.0,0.050766]
[1732272042274,0.050766,98417.0,98416.0,0.050766]
[1732272042475,0.144846,98417.0,98416.0,0.050766]
[1732272044082,0.09408,98417.0,98416.0,0.050766]
[1732272051891,0.144846,98417.0,98416.0,0.050766]
[1732272052993,0.050769,98412.0,98411.0,0.050768]
[1732272053183,0.050769,98412.0,98397.0,0.00152392]
[1732272053184,0.050775,98398.0,98397.0,0.00152392]
[1732272053382,0.144855,98398.0,98397.0,0.00152392]
[1732272053891,1.644855,98398.0,98397.0,0.00152392]
[1732272054800,0.144855,98398.0,98397.0,0.00152392]
[1732272056184,0.18305323,98398.0,98397.0,0.00152392]
[1732272056987,0.050783,98383.0,98382.0,0.0047]
[1732272057198,0.050784,98381.0,98380.0,0.050784]
[1732272057501,0.050786,98378.0,98377.0,0.0325]
[1732272058295,0.3608,98384.0,98377.0,0.0325]
[1732272058491,0.09408,98383.0,98382.0,0.050784]
[1732272059794,0.03919223,98384.0,98383.0,0.050783]
[1732272060097,0.0024,98396.0,98395.0,0.050777]
[1732272060302,0.13181366,98396.0,98395.0,0.050777]
[1732272060893,0.18258966,98396.0,98395.0,0.050777]
[1732272061599,0.18258966,98396.0,98379.0,0.050785]
[1732272061793,0.05078,98390.0,98389.0,0.050779]
[1732272062493,0.09412,98390.0,98389.0,0.050779]
[1732272064796,0.09412,98390.0,98389.0,0.411579]
[1732272065693,0.050778,98393.0,98392.0,0.050779]
[1732272066003,0.144898,98393.0,98392.0,0.050779]
[1732272066495,0.050778,98393.0,98392.0,0.050779]
[1732272066696,0.144898,98393.0,98392.0,0.050779]
[1732272069094,0.050778,98393.0,98392.0,0.050779]
[1732272069296,0.144658,98393.0,98392.0,0.050779]
[1732272069894,0.09388,98393.0,98392.0,0.050779]
[1732272072299,0.03769366,98396.0,98392.0,0.050779]
[1732272072510,0.09388,98397.0,98396.0,0.050776]
[1732272078803,0.02030005,98398.0,98390.0,0.36172]
[1732272079106,0.02030005,98398.0,98397.0,0.050776]
[1732272079302,0.11418005,98398.0,98397.0,0.050776]
[1732272084718,0.02030005,98398.0,98397.0,0.050776]
[1732272087812,0.07107505,98398.0,98397.0,0.050776]
[1732272088116,0.050781,98387.0,98386.0,0.05078]
[1732272088311,0.050783,98383.0,98382.0,0.412503]
[1732272088618,0.050783,98383.0,98382.0,0.36172]
[1732272089021,0.050783,98383.0,98382.0,0.3608]
[1732272089211,0.050783,98383.0,98382.0,0.411584]
[1732272089411,0.050783,98383.0,98382.0,0.050784]
[1732272091113,0.08853031,98383.0,98382.0,0.050784]
[1732272095022,0.03774731,98383.0,98382.0,0.411584]
[1732272095329,0.09388,98395.0,98394.0,0.050778]
[1732272095624,0.144657,98395.0,98394.0,0.050778]
[1732272097318,0.050783,98384.0,98383.0,0.050783]
[1732272097527,0.144663,98384.0,98383.0,0.050783]
[1732272098323,0.050784,98382.0,98381.0,0.00092]
[1732272098523,0.050786,98381.0,98380.0,0.050785]
[1732272099027,0.09388,98384.0,98383.0,0.050783]
[1732272099726,0.144663,98384.0,98383.0,0.050783]
[1732272100520,0.18242749,98384.0,98383.0,0.050783]
[1732272102023,0.08854749,98384.0,98383.0,0.050783]
[1732272102231,0.18226749,98384.0,98383.0,0.050783]
[1732272102724,0.13148449,98384.0,98383.0,0.050783]
[1732272103428,0.18226749,98384.0,98383.0,0.050783]
[1732272106022,0.20257446,98384.0,98383.0,0.050783]
[1732272106414,0.20257846,98384.0,98383.0,0.050783]
[1732272107024,0.15179146,98384.0,98383.0,0.050783]
[1732272108222,0.20257946,98384.0,98383.0,0.050783]
[1732272110920,0.15179146,98384.0,98383.0,0.050783]
[1732272113920,0.20257946,98384.0,98383.0,0.050783]
[1732272114117,0.10885946,98384.0,98383.0,0.050783]
[1732272114615,0.050792,98379.0,98378.0,0.050791]
[1732272115533,0.05807146,98384.0,98369.0,0.36172]
[1732272115720,0.02030697,98384.0,98374.0,0.050793]
[1732272115925,0.050798,98367.0,98366.0,0.050797]
[1732272117431,0.08968551,98367.0,98366.0,0.050797]
[1732272119128,0.0508,98362.0,98361.0,0.050799]
[1732272120430,0.54472452,98367.0,98366.0,0.050797]
[1732272120623,0.54420451,98367.0,98366.0,0.050797]
[1732272125331,0.050801,98363.0,98362.0,0.050799]
[1732272129536,0.56503649,98367.0,98366.0,0.050797]
[1732272129733,0.56451648,98367.0,98366.0,0.050797]
[1732272131931,0.56435648,98367.0,98366.0,0.050797]
[1732272133737,0.51355948,98367.0,98366.0,0.050797]
[1732272136531,0.56435648,98367.0,98366.0,0.050797]
[1732272136929,0.51355948,98367.0,98366.0,0.050797]
[1732272137131,0.56435648,98367.0,98366.0,0.050797]
[1732272137532,0.51355948,98367.0,98366.0,0.050797]
[1732272139927,0.56435648,98367.0,98366.0,0.050797]
[1732272141342,0.51355948,98367.0,98366.0,0.050797]
[1732272144038,0.03888751,98367.0,98366.0,0.355797]
[1732272144229,0.3608,98377.0,98376.0,0.050792]
[1732272145035,0.39848136,98377.0,98376.0,0.050792]
[1732272148830,0.050795,98371.0,98370.0,0.050795]
[1732272152448,0.144355,98371.0,98370.0,0.050795]
[1732272152647,0.09356,98371.0,98370.0,0.050795]
[1732272153436,0.03820137,98377.0,98370.0,0.050795]
[1732272153437,0.03768136,98377.0,98376.0,0.050792]
[1732272153642,0.09356,98377.0,98376.0,0.050792]
[1732272154547,0.45436,98377.0,98376.0,0.050792]
[1732272154851,0.09356,98377.0,98376.0,0.050792]
[1732272158455,0.11387103,98377.0,98376.0,0.050792]
[1732272159747,0.02031103,98377.0,98376.0,0.050792]
[1732272171160,0.02010786,98377.0,98376.0,0.050792]
[1732272174067,0.07089886,98377.0,98376.0,0.050792]
[1732272174269,0.050795,98372.0,98371.0,0.050794]
[1732272175173,0.050798,98365.0,98364.0,0.050797]
[1732272175363,0.411598,98365.0,98364.0,0.050797]
[1732272178267,0.03741276,98365.0,98364.0,0.050797]
[1732272178563,0.0308,98376.0,98356.0,0.3608]
[1732272178766,0.144152,98375.0,98374.0,0.048392]
[1732272185675,0.504952,98375.0,98374.0,0.048392]
[1732272188070,0.45416,98375.0,98360.0,0.0047]
[1732272188272,0.050795,98370.0,98369.0,0.050795]
[1732272189278,0.45468001,98375.0,98355.0,0.3608]
[1732272189475,0.411598,98365.0,98364.0,0.050797]
[1732272189880,0.3608,98365.0,98364.0,0.050797]
[1732272190070,0.050798,98365.0,98364.0,0.050797]
[1732272190271,0.3608,98374.0,98355.0,0.3608]
[1732272190272,0.09316,98369.0,98368.0,0.050796]
[1732272199585,0.1134704,98369.0,98368.0,0.050796]
[1732272202184,0.1134704,98369.0,98360.0,0.0614]
[1732272202386,0.050797,98366.0,98364.0,0.050798]
[1732272202587,0.1134704,98369.0,98350.0,0.0348]
[1732272202889,0.1134704,98369.0,98359.0,0.07804958]
[1732272203086,0.1134704,98369.0,98365.0,0.050797]
[1732272204087,0.3608,98366.0,98365.0,0.050797]
[1732272204790,0.411597,98366.0,98365.0,0.050797]
[1732272205596,0.050795,98360.0,98359.0,0.12884458]
[1732272205802,0.050795,98360.0,98359.0,0.050795]
[1732272208096,0.050793,98365.0,98364.0,0.050793]
[1732272209807,0.08861721,98365.0,98364.0,0.050793]
[1732272218611,0.03782421,98365.0,98364.0,0.050793]
[1732272218806,0.0203104,98369.0,98364.0,0.050793]
[1732272219109,0.0203104,98369.0,98368.0,0.050791]
[1732272226312,0.0711004,98369.0,98368.0,0.050791]
[1732272227013,0.0203104,98369.0,98368.0,0.050791]
[1732272228618,0.00052001,98374.0,98373.0,0.050788]
[1732272228822,0.0399,98375.0,98374.0,0.050788]
[1732272233714,0.02030593,98385.0,98384.0,0.050783]
[1732272233715,0.07778429,98385.0,98384.0,0.050783]
[1732272233921,0.0399,98385.0,98384.0,0.050783]
[1732272236633,0.0399,98387.0,98386.0,0.050782]
[1732272236840,0.0399,98389.0,98388.0,0.050781]
[1732272238336,0.07890461,98389.0,98388.0,0.050781]
[1732272239329,0.0399,98389.0,98388.0,0.050781]
[1732272240731,0.09068,98389.0,98388.0,0.050781]
[1732272240931,0.0772434,98389.0,98388.0,0.050781]
[1732272243136,0.1280234,98389.0,98388.0,0.050781]
[1732272244138,0.050783,98385.0,98384.0,0.050782]
[1732272244334,0.050784,98382.0,98381.0,0.36172]
[1732272244542,0.050784,98382.0,98381.0,0.3608]
[1732272245232,0.050784,98382.0,98372.0,0.050789]
[1732272245439,0.050788,98373.0,98372.0,0.050789]
[1732272247937,0.08886995,98373.0,98372.0,0.050789]
[1732272252447,0.03808195,98373.0,98372.0,0.050789]
[1732272252652,0.0399,98374.0,98365.0,0.050792]
[1732272252949,0.0399,98374.0,98373.0,0.050788]
[1732272253653,0.12821105,98374.0,98373.0,0.050788]
[1732272255651,0.14852013,98374.0,98373.0,0.050788]
[1732272257952,0.09773213,98374.0,98373.0,0.050788]
[1732272261061,0.14852013,98374.0,98373.0,0.050788]
[1732272262359,0.09773213,98374.0,98373.0,0.050788]
[1732272277673,0.14852013,98374.0,98373.0,0.050788]
[1732272278258,0.12821105,98374.0,98373.0,0.050788]
[1732272286072,0.05079,98370.0,98368.0,0.05231473]
[1732272286377,0.05079,98370.0,98369.0,0.05079]
[1732272287383,0.07742305,98374.0,98368.0,0.00152473]
[1732272287583,0.05079,98369.0,98368.0,0.00152473]
[1732272287884,0.09069,98369.0,98368.0,0.00152473]
[1732272292387,0.4007,98369.0,98356.0,0.3608]
[1732272292588,0.050794,98362.0,98356.0,0.36172]
[1732272293092,0.050794,98362.0,98359.0,0.050795]
[1732272294396,0.050794,98362.0,98360.0,0.050795]
[1732272295694,0.050794,98362.0,98361.0,0.082095]
[1732272296089,0.050792,98367.0,98363.0,0.050793]
[1732272296288,0.050792,98366.0,98363.0,0.050793]
[1732272296483,0.050792,98366.0,98364.0,0.050792]
[1732272296687,0.090692,98366.0,98365.0,0.050792]
[1732272296889,0.0399,98366.0,98365.0,0.050792]
[1732272298385,0.0399,98366.0,98365.0,0.411592]
[1732272299700,0.0399,98373.0,98365.0,0.411592]
[1732272299892,0.0399,98373.0,98372.0,0.050789]
[1732272300196,0.0399,98373.0,98365.0,0.411592]
[1732272300197,0.050792,98366.0,98365.0,0.00092]
[1732272300495,0.050803,98345.0,98340.0,0.0098]
[1732272300698,0.050803,98345.0,98333.0,0.0322]
[1732272300699,0.090703,98345.0,98333.0,0.0322]
[1732272300885,0.183583,98345.0,98333.0,0.0322]
[1732272301090,0.050803,98344.0,98330.0,0.36144]
[1732272301290,0.05081,98331.0,98330.0,0.3608]
[1732272301490,0.14369,98331.0,98330.0,0.3608]
[1732272301692,0.09288,98331.0,98323.0,0.050814]
[1732272302001,0.050813,98325.0,98322.0,0.0316]
[1732272302293,0.050814,98324.0,98322.0,0.0316]
[1732272304392,0.08941799,98324.0,98322.0,0.0316]
[1732272307294,0.050819,98313.0,98311.0,0.05082]
[1732272307493,0.050823,98306.0,98304.0,0.0327]
[1732272308311,0.09288,98310.0,98302.0,0.36152]
[1732272308501,0.050825,98303.0,98302.0,0.3608]
[1732272309005,0.090725,98303.0,98302.0,0.3608]
[1732272309204,0.050826,98301.0,98300.0,0.1]
[1732272311307,0.143746,98301.0,98300.0,0.1]
[1732272311501,0.050826,98301.0,98300.0,0.1]
[1732272311707,0.143746,98301.0,98300.0,0.1]
[1732272312299,0.09292,98301.0,98300.0,0.150826]
[1732272312493,0.3608,98302.0,98300.0,0.150826]
[1732272312706,0.45372,98302.0,98300.0,0.150826]
[1732272313098,0.3608,98302.0,98300.0,0.150826]
[1732272314702,0.4007,98302.0,98300.0,0.150826]
[1732272323516,0.0399,98302.0,98300.0,0.150826]
[1732272323819,0.0399,98304.0,98303.0,0.050825]
[1732272324211,0.0399,98304.0,98303.0,0.411625]
[1732272326812,0.050823,98306.0,98303.0,0.411625]
[1732272327211,0.050823,98305.0,98303.0,0.411625]
[1732272327411,0.050824,98304.0,98303.0,0.3608]
[1732272328426,0.050825,98302.0,98300.0,0.1]
[1732272328723,0.050826,98301.0,98300.0,0.1]
[1732272329227,0.14175001,98301.0,98300.0,0.1]
[1732272329612,0.050826,98301.0,98300.0,0.1]
[1732272329818,0.090726,98301.0,98300.0,0.1]
[1732272331742,0.090726,98301.0,98300.0,0.150826]
[1732272333423,0.12948645,98301.0,98300.0,0.150826]
[1732272334224,0.0399,98301.0,98300.0,0.150826]
[1732272335820,0.0399,98304.0,98303.0,0.050825]
[1732272336024,0.0399,98304.0,98303.0,0.411625]
[1732272337329,0.0399,98304.0,98303.0,0.050825]
[1732272338825,0.13056262,98306.0,98305.0,0.050823]
[1732272339026,0.0399,98306.0,98305.0,0.050823]
[1732272339236,0.13064555,98306.0,98305.0,0.050823]
[1732272339434,0.0399,98306.0,98305.0,0.050823]
[1732272339621,0.13064555,98306.0,98305.0,0.050823]
[1732272339821,0.0399,98306.0,98305.0,0.050823]
[1732272341728,0.0399,98307.0,98305.0,0.050823]
[1732272341929,0.0399,98307.0,98300.0,0.1]
[1732272342124,0.0399,98307.0,98306.0,0.050823]
[1732272344736,0.0399,98309.0,98300.0,0.1]
[1732272344932,0.0399,98309.0,98307.0,0.050822]
[1732272346130,0.0399,98309.0,98300.0,0.1]
[1732272346350,0.0399,98309.0,98308.0,0.050822]
[1732272346627,0.0399,98309.0,98308.0,0.411622]
[1732272347839,0.0399,98315.0,98314.0,0.050819]
[1732272349839,0.07831184,98315.0,98314.0,0.050819]
[1732272350040,0.0399,98315.0,98314.0,0.050819]
[1732272357933,0.090718,98315.0,98314.0,0.050819]
[1732272358138,0.0399,98315.0,98314.0,0.050819]
[1732272358939,0.050821,98310.0,98309.0,0.083221]
[1732272359134,0.050821,98310.0,98309.0,0.0324]
[1732272359834,0.090721,98310.0,98309.0,0.0324]
[1732272360233,0.0399,98310.0,98296.0,0.3608]
[1732272360435,0.050826,98301.0,98297.0,0.050828]
[1732272361440,0.050826,98301.0,98296.0,0.3608]
[1732272361839,0.050826,98301.0,98300.0,0.150826]
[1732272362039,0.050826,98301.0,98300.0,0.1]
[1732272362938,0.090726,98301.0,98300.0,0.1]
[1732272363542,0.12809336,98301.0,98300.0,0.1]
[1732272364341,0.12809336,98301.0,98300.0,0.150826]
[1732272364938,0.12809336,98301.0,98300.0,0.1]
[1732272369254,0.12809336,98301.0,98300.0,0.05]
[1732272369537,0.050837,98279.0,98278.0,0.0051]
[1732272369737,0.190817,98279.0,98276.0,0.050838]
[1732272369944,0.190817,98279.0,98275.0,0.0314]
[1732272369945,0.190817,98279.0,98277.0,0.050838]
[1732272371247,0.050838,98278.0,98275.0,0.0314]
[1732272372151,0.13998,98279.0,98278.0,0.050837]
[1732272372451,0.13998,98279.0,98275.0,0.0314]
[1732272372650,0.17879089,98279.0,98275.0,0.0314]
[1732272372842,0.22962789,98279.0,98275.0,0.0314]
[1732272373144,0.17879089,98279.0,98278.0,0.050837]
[1732272375544,0.07871089,98279.0,98278.0,0.050837]
[1732272377646,0.07871089,98279.0,98275.0,0.0314]
[1732272377843,0.12954789,98279.0,98275.0,0.082239]
[1732272378144,0.07871089,98279.0,98275.0,0.0314]
[1732272378352,0.050838,98276.0,98275.0,0.0314]
[1732272379346,0.07871089,98279.0,98274.0,0.0015263]
[1732272379547,0.050839,98275.0,98274.0,0.0015263]
[1732272381050,0.090739,98275.0,98274.0,0.0015263]
[1732272381558,0.451539,98275.0,98274.0,0.0015263]
[1732272383253,0.4007,98275.0,98274.0,0.0523663]
[1732272388048,0.4007,98275.0,98274.0,0.0015263]
[1732272388248,0.451539,98275.0,98274.0,0.0015263]
[1732272396769,0.4007,98275.0,98274.0,0.0523663]
[1732272397765,0.42103027,98275.0,98274.0,0.0523663]
[1732272402780,0.47186927,98275.0,98274.0,0.0015263]
[1732272403468,0.050841,98272.0,98264.0,0.3608]
[1732272403671,0.42103027,98275.0,98264.0,0.3608]
[1732272403672,0.42163028,98275.0,98271.0,0.050841]
[1732272403867,0.42103027,98275.0,98264.0,0.3608]
[1732272404077,0.42103027,98275.0,98273.0,0.05084]
[1732272404878,0.42103027,98275.0,98274.0,0.05084]
[1732272410590,0.42103027,98275.0,98271.0,0.050841]
[1732272410988,0.0399,98275.0,98274.0,0.05084]
[1732272411196,0.07889206,98285.0,98272.0,0.3608]
[1732272411398,0.0399,98285.0,98284.0,0.050834]
[1732272412597,0.3608,98294.0,98284.0,0.050834]
[1732272412793,0.3608,98294.0,98293.0,0.05083]
[1732272412998,0.36132001,98308.0,98293.0,0.05083]
[1732272412999,0.00152664,98299.0,98298.0,0.050827]
[1732272414097,0.36232664,98299.0,98298.0,0.050827]
[1732272417190,0.41315364,98299.0,98295.0,0.0328]
[1732272417499,0.050829,98295.0,98294.0,0.0312]
[1732272417803,0.050833,98286.0,98279.0,0.050837]
[1732272417994,0.3608,98282.0,98279.0,0.050837]
[1732272418195,0.3608,98282.0,98274.0,0.031]
[1732272418196,0.050836,98281.0,98276.0,0.050838]
[1732272418506,0.0126,98292.0,98274.0,0.031]
[1732272418802,0.3608,98282.0,98281.0,0.050836]
[1732272419392,0.41214901,98295.0,98275.0,0.3608]
[1732272419603,0.45083796,98295.0,98280.0,0.11908709]
[1732272420103,0.09304,98294.0,98280.0,0.11908709]
[1732272420498,0.36132001,98295.0,98283.0,0.3608]
[1732272420718,0.3608,98295.0,98283.0,0.3608]
[1732272421602,0.3608,98295.0,98293.0,0.050829]
[1732272421793,0.3608,98295.0,98294.0,0.0308]
[1732272422393,0.3608,98295.0,98294.0,0.0925]
[1732272423196,0.00152664,98299.0,98298.0,0.050827]
[1732272425903,0.00152664,98299.0,98298.0,0.356027]
[1732272427214,0.0126,98308.0,98307.0,0.050822]
[1732272427415,0.03989312,98317.0,98314.0,0.050819]
[1732272427704,0.03749312,98317.0,98314.0,0.050819]
[1732272429310,0.03749312,98317.0,98305.0,0.3608]
[1732272429712,0.050819,98314.0,98305.0,0.3608]
[1732272429911,0.050821,98310.0,98305.0,0.3608]
[1732272430610,0.0331,98314.0,98305.0,0.3608]
[1732272431001,0.083919,98314.0,98305.0,0.3608]
[1732272431611,0.083919,98314.0,98304.0,0.050824]
[1732272431917,0.3608,98315.0,98310.0,0.050821]
[1732272432106,0.3608,98315.0,98311.0,0.0302]
[1732272434011,0.3608,98315.0,98311.0,0.08102]
[1732272434213,0.3608,98315.0,98314.0,0.050819]
[1732272438119,0.3608,98315.0,98311.0,0.0302]
[1732272438317,0.050819,98314.0,98311.0,0.0302]
[1732272438516,0.05082,98312.0,98306.0,0.050823]
[1732272439022,0.050821,98310.0,98301.0,0.411625]
[1732272439218,0.0301,98314.0,98301.0,0.3608]
[1732272439420,0.0301,98314.0,98308.0,0.050822]
[1732272440326,0.0301,98314.0,98301.0,0.3608]
[1732272440824,0.0301,98314.0,98310.0,0.050821]
[1732272441012,0.0301,98314.0,98301.0,0.3608]
[1732272441212,0.3608,98315.0,98314.0,0.050819]
[1732272443025,0.03866688,98321.0,98320.0,0.050816]
[1732272443323,0.0024,98339.0,98320.0,0.3608]
[1732272443521,0.0024,98339.0,98333.0,0.411609]
[1732272443720,0.0666,98348.0,98333.0,0.411609]
[1732272444310,0.0666,98348.0,98342.0,0.050804]
[1732272444511,0.0642,98348.0,98342.0,0.050804]
[1732272444715,0.0642,98348.0,98343.0,0.050804]
[1732272444913,0.425,98348.0,98333.0,0.3608]
[1732272445114,0.425,98348.0,98333.0,0.411609]
[1732272445314,0.050807,98338.0,98333.0,0.3608]
[1732272445712,0.050807,98337.0,98333.0,0.3608]
[1732272446423,0.050804,98342.0,98333.0,0.3608]
[1732272446624,0.050802,98347.0,98338.0,0.050806]
[1732272446828,0.51860001,98348.0,98338.0,0.050806]
[1732272447018,0.050804,98343.0,98338.0,0.050806]
[1732272447220,0.51860001,98348.0,98338.0,0.050806]
[1732272447427,0.518,98348.0,98338.0,0.050806]
[1732272447721,0.050804,98342.0,98338.0,0.050806]
[1732272447924,0.050806,98340.0,98335.0,0.050808]
[1732272448122,0.51852001,98348.0,98335.0,0.050808]
[1732272448325,0.51852001,98348.0,98333.0,0.3608]
[1732272448517,0.050808,98334.0,98333.0,0.3608]
[1732272448713,0.518,98348.0,98333.0,0.3608]
[1732272448714,0.5204,98348.0,98334.0,0.050808]
[1732272448918,0.050804,98343.0,98333.0,0.3608]
[1732272449115,0.050804,98343.0,98337.0,0.050806]
[1732272449317,0.518,98348.0,98337.0,0.050806]
[1732272449518,0.050802,98347.0,98337.0,0.050806]
[1732272449718,0.050805,98341.0,98337.0,0.050806]
[1732272449933,0.050806,98339.0,98337.0,0.050806]
[1732272451129,0.518,98348.0,98333.0,0.3608]
[1732272451324,0.050807,98338.0,98333.0,0.3608]
[1732272451636,0.050808,98336.0,98333.0,0.3608]
[1732272452218,0.050808,98335.0,98333.0,0.3608]
[1732272452621,0.05081,98332.0,98325.0,0.050813]
[1732272452820,0.093,98335.0,98325.0,0.050813]
[1732272453123,0.050811,98330.0,98325.0,0.050813]
[1732272453725,0.21208709,98335.0,98326.0,0.050812]
[1732272453924,0.050809,98333.0,98326.0,0.050812]
[1732272454524,0.3608,98332.0,98326.0,0.050812]
[1732272454729,0.050809,98333.0,98326.0,0.050812]
[1732272455321,0.050809,98333.0,98321.0,0.39424]